[Event "Late-Titled-Tuesday-Blitz-March-26-2024"]
[Site "Chess.com"]
[Date "2024.03.26"]
[Round "7"]
[White "TokChess"]
[Black "BallottiLuca"]
[Result "1-0"]
[WhiteElo "2598"]
[BlackElo "2343"]
[TimeControl "180+1"]
[EndTime "15:18:52 PDT"]
[Termination "TokChess won on time"]

1. b3 {[%clk 0:03:00.9]} 1... c5 {[%clk 0:02:57.4]} 2. Bb2 {[%clk 0:03:01.8]}
2... Nc6 {[%clk 0:02:54.4]} 3. Nf3 {[%clk 0:03:01.9]} 3... d6 {[%clk 0:02:53.1]}
4. e4 {[%clk 0:03:00.6]} 4... e5 {[%clk 0:02:50.2]} 5. Bb5 {[%clk 0:02:57.6]}
5... Nf6 {[%clk 0:02:47.1]} 6. d3 {[%clk 0:02:55.5]} 6... g6 {[%clk 0:02:42.9]}
7. h3 {[%clk 0:02:55.6]} 7... Bg7 {[%clk 0:02:40.3]} 8. Bxc6+ {[%clk 0:02:55.9]}
8... bxc6 {[%clk 0:02:40.2]} 9. O-O {[%clk 0:02:56.8]} 9... O-O {[%clk
0:02:40.3]} 10. Nbd2 {[%clk 0:02:56.8]} 10... Be6 {[%clk 0:02:39]} 11. Re1
{[%clk 0:02:55.6]} 11... h6 {[%clk 0:02:38.8]} 12. Nc4 {[%clk 0:02:55.8]} 12...
Qd7 {[%clk 0:02:38.7]} 13. a4 {[%clk 0:02:49.9]} 13... Nh5 {[%clk 0:02:38.6]}
14. Bc1 {[%clk 0:02:36.6]} 14... f5 {[%clk 0:02:38.2]} 15. exf5 {[%clk
0:02:32.3]} 15... Bxf5 {[%clk 0:02:31.2]} 16. Rb1 {[%clk 0:02:21.7]} 16... Be6
{[%clk 0:01:56.1]} 17. Nh2 {[%clk 0:02:18.5]} 17... Nf4 {[%clk 0:01:51.5]} 18.
Bxf4 {[%clk 0:02:14.2]} 18... Rxf4 {[%clk 0:01:52.4]} 19. Re3 {[%clk 0:02:07.1]}
19... Raf8 {[%clk 0:01:52.1]} 20. Qe2 {[%clk 0:02:03.8]} 20... Bd5 {[%clk
0:01:39.7]} 21. Rg3 {[%clk 0:01:54.4]} 21... Kh7 {[%clk 0:01:34.4]} 22. Nd2
{[%clk 0:01:49.1]} 22... Be6 {[%clk 0:01:27.3]} 23. Ne4 {[%clk 0:01:48]} 23...
Qe7 {[%clk 0:01:21]} 24. Re1 {[%clk 0:01:39.6]} 24... d5 {[%clk 0:01:20.9]} 25.
Nd2 {[%clk 0:01:37.9]} 25... Qf7 {[%clk 0:01:16.8]} 26. Rf3 {[%clk 0:01:29.2]}
26... h5 {[%clk 0:01:11.3]} 27. Qe3 {[%clk 0:01:22.7]} 27... Qe7 {[%clk
0:00:48.4]} 28. Rxf4 {[%clk 0:01:18.7]} 28... Rxf4 {[%clk 0:00:49.3]} 29. Ndf3
{[%clk 0:01:10]} 29... Rf5 {[%clk 0:00:46.3]} 30. Nf1 {[%clk 0:00:59.2]} 30...
Bh6 {[%clk 0:00:40.2]} 31. Qe2 {[%clk 0:00:57.3]} 31... Bf4 {[%clk 0:00:14.3]}
32. Ng3 {[%clk 0:00:41.2]} 32... Rf8 {[%clk 0:00:10.4]} 33. Nxe5 {[%clk
0:00:39.2]} 33... Re8 {[%clk 0:00:05.7]} 34. Qf3 {[%clk 0:00:22.2]} 34... Qg5
{[%clk 0:00:04.4]} 35. Nxc6 {[%clk 0:00:18.4]} 35... h4 {[%clk 0:00:03.9]} 36.
Nf1 {[%clk 0:00:15.7]} 36... Bd7 {[%clk 0:00:01.6]} 37. Rxe8 {[%clk 0:00:14.3]}
37... Bxe8 {[%clk 0:00:02.5]} 38. Na5 {[%clk 0:00:08.5]} 38... Bd7 {[%clk
0:00:01.7]} 39. Nb7 {[%clk 0:00:07.7]} 39... Bc6 {[%clk 0:00:01.8]} 40. Nxc5
{[%clk 0:00:06.6]} 40... Ba8 {[%clk 0:00:01.5]} 41. Ne6 {[%clk 0:00:06.6]} 41...
Qf5 {[%clk 0:00:01.3]} 42. Nxf4 {[%clk 0:00:06.7]} 42... g5 {[%clk 0:00:01.4]}
43. Ne2 {[%clk 0:00:05.5]} 43... Qe6 {[%clk 0:00:01.3]} 44. d4 {[%clk
0:00:04.4]} 44... Bc6 {[%clk 0:00:01.6]} 45. Qe3 {[%clk 0:00:04.7]} 45... Qd7
{[%clk 0:00:01.4]} 46. Qe5 {[%clk 0:00:04.7]} 46... Bb7 {[%clk 0:00:01.6]} 47.
Ne3 {[%clk 0:00:04.6]} 47... Kh6 {[%clk 0:00:01.5]} 48. Ng4+ {[%clk 0:00:04.8]}
48... Kh5 {[%clk 0:00:01.5]} 49. Nf6+ {[%clk 0:00:04.7]} 1-0

[Event "Late-Titled-Tuesday-Blitz-March-26-2024"]
[Site "Chess.com"]
[Date "2024.03.26"]
[Round "7"]
[White "CURRUTACO59"]
[Black "protectiago"]
[Result "1-0"]
[WhiteElo "2275"]
[BlackElo "2081"]
[TimeControl "180+1"]
[EndTime "15:18:54 PDT"]
[Termination "CURRUTACO59 won on time"]

1. Nf3 {[%clk 0:02:57.8]} 1... c5 {[%clk 0:02:57.9]} 2. e3 {[%clk 0:02:57.5]}
2... Nc6 {[%clk 0:02:56]} 3. d4 {[%clk 0:02:58.1]} 3... cxd4 {[%clk 0:02:54]} 4.
exd4 {[%clk 0:02:58.2]} 4... d5 {[%clk 0:02:54.3]} 5. Bd3 {[%clk 0:02:58.3]}
5... Bg4 {[%clk 0:02:53.6]} 6. c3 {[%clk 0:02:57.9]} 6... Nf6 {[%clk 0:02:53.7]}
7. O-O {[%clk 0:02:57.7]} 7... e6 {[%clk 0:02:53.7]} 8. Bf4 {[%clk 0:02:57.3]}
8... Bd6 {[%clk 0:02:53.5]} 9. Bxd6 {[%clk 0:02:56.6]} 9... Qxd6 {[%clk
0:02:53.5]} 10. Nbd2 {[%clk 0:02:57.3]} 10... O-O {[%clk 0:02:53.1]} 11. Re1
{[%clk 0:02:56.3]} 11... Rac8 {[%clk 0:02:48.7]} 12. h3 {[%clk 0:02:52.7]} 12...
Bh5 {[%clk 0:02:47.3]} 13. Qb1 {[%clk 0:02:49.3]} 13... Bg6 {[%clk 0:02:46.4]}
14. Bxg6 {[%clk 0:02:48.3]} 14... hxg6 {[%clk 0:02:46.1]} 15. Qd3 {[%clk
0:02:47.6]} 15... a6 {[%clk 0:02:42.7]} 16. a4 {[%clk 0:02:46.3]} 16... Na5
{[%clk 0:02:39.9]} 17. Ne5 {[%clk 0:02:45.3]} 17... Rfd8 {[%clk 0:02:34.2]} 18.
h4 {[%clk 0:02:28.3]} 18... Rc7 {[%clk 0:02:32.8]} 19. g3 {[%clk 0:02:25.8]}
19... Rdc8 {[%clk 0:02:32.3]} 20. Kg2 {[%clk 0:02:24.9]} 20... Nc4 {[%clk
0:02:25.4]} 21. Ndxc4 {[%clk 0:01:50.1]} 21... dxc4 {[%clk 0:02:24.9]} 22. Qe2
{[%clk 0:01:44]} 22... Qd5+ {[%clk 0:02:08.7]} 23. Kh2 {[%clk 0:01:42.7]} 23...
b5 {[%clk 0:02:00]} 24. axb5 {[%clk 0:01:42.1]} 24... Qxb5 {[%clk 0:01:58.8]}
25. Ra2 {[%clk 0:01:36.6]} 25... Rb7 {[%clk 0:01:48.4]} 26. Qf3 {[%clk
0:01:30.3]} 26... Rcb8 {[%clk 0:01:27.4]} 27. Rea1 {[%clk 0:01:29.5]} 27... Qd5
{[%clk 0:00:55]} 28. Qe2 {[%clk 0:01:19.4]} 28... Qe4 {[%clk 0:00:48.5]} 29.
Qxe4 {[%clk 0:00:27.2]} 29... Nxe4 {[%clk 0:00:48.5]} 30. Nxc4 {[%clk
0:00:27.2]} 30... Nxf2 {[%clk 0:00:43.5]} 31. Rxa6 {[%clk 0:00:25.6]} 31... Rc7
{[%clk 0:00:14.8]} 32. Ra8 {[%clk 0:00:24.4]} 32... Rxa8 {[%clk 0:00:13.3]} 33.
Rxa8+ {[%clk 0:00:25.3]} 33... Kh7 {[%clk 0:00:14]} 34. Ne5 {[%clk 0:00:24.2]}
34... Rb7 {[%clk 0:00:12.5]} 35. b4 {[%clk 0:00:20.5]} 35... Ne4 {[%clk
0:00:11.6]} 36. Rc8 {[%clk 0:00:17.1]} 36... f6 {[%clk 0:00:10.3]} 37. Nd3
{[%clk 0:00:14.9]} 37... g5 {[%clk 0:00:10.3]} 38. hxg5 {[%clk 0:00:13]} 38...
Nxg5 {[%clk 0:00:10.4]} 39. Kg2 {[%clk 0:00:13]} 39... Kg6 {[%clk 0:00:10.5]}
40. Nc5 {[%clk 0:00:12.7]} 40... Ra7 {[%clk 0:00:10]} 41. b5 {[%clk 0:00:09.7]}
41... Ra2+ {[%clk 0:00:10.2]} 42. Kf1 {[%clk 0:00:07.6]} 42... Rc2 {[%clk
0:00:08.5]} 43. b6 {[%clk 0:00:06.3]} 43... Rxc3 {[%clk 0:00:08.2]} 44. b7
{[%clk 0:00:06]} 44... Rb3 {[%clk 0:00:05.2]} 45. b8=Q {[%clk 0:00:05.8]} 45...
Rb1+ {[%clk 0:00:05.5]} 46. Qxb1+ {[%clk 0:00:04.9]} 1-0

[Event "Late-Titled-Tuesday-Blitz-March-26-2024"]
[Site "Chess.com"]
[Date "2024.03.26"]
[Round "7"]
[White "jinxy2009"]
[Black "Bkmzzzzz"]
[Result "1/2-1/2"]
[WhiteElo "2268"]
[BlackElo "2390"]
[TimeControl "180+1"]
[EndTime "15:18:56 PDT"]
[Termination "Game drawn - insufficient material"]

1. e4 {[%clk 0:03:00.9]} 1... d6 {[%clk 0:03:00.2]} 2. d4 {[%clk 0:03:00.7]}
2... Nf6 {[%clk 0:03:00.8]} 3. Nc3 {[%clk 0:03:00]} 3... e5 {[%clk 0:03:01.5]}
4. Nf3 {[%clk 0:02:59.1]} 4... Nbd7 {[%clk 0:03:00.6]} 5. Bc4 {[%clk 0:02:59.2]}
5... Be7 {[%clk 0:03:00]} 6. O-O {[%clk 0:02:58.9]} 6... O-O {[%clk 0:02:59.9]}
7. Re1 {[%clk 0:02:58.5]} 7... c6 {[%clk 0:02:59.8]} 8. a4 {[%clk 0:02:58.4]}
8... b6 {[%clk 0:02:59.5]} 9. h3 {[%clk 0:02:51.9]} 9... a6 {[%clk 0:02:59.2]}
10. d5 {[%clk 0:02:34.7]} 10... cxd5 {[%clk 0:02:57.4]} 11. Nxd5 {[%clk
0:02:32]} 11... Nxd5 {[%clk 0:02:57.2]} 12. Bxd5 {[%clk 0:02:31.2]} 12... Rb8
{[%clk 0:02:56.5]} 13. Be3 {[%clk 0:02:22.8]} 13... Nf6 {[%clk 0:02:50]} 14. c4
{[%clk 0:01:54.5]} 14... Nxd5 {[%clk 0:02:19.3]} 15. exd5 {[%clk 0:01:55.4]}
15... f5 {[%clk 0:02:16.8]} 16. b4 {[%clk 0:01:51.1]} 16... f4 {[%clk
0:01:55.2]} 17. Bd2 {[%clk 0:01:50.8]} 17... Bf5 {[%clk 0:01:55.1]} 18. Bc3
{[%clk 0:01:41.3]} 18... Bf6 {[%clk 0:01:41.6]} 19. c5 {[%clk 0:01:39.5]} 19...
bxc5 {[%clk 0:01:38]} 20. bxc5 {[%clk 0:01:39.1]} 20... e4 {[%clk 0:01:07.5]}
21. Bxf6 {[%clk 0:01:27.6]} 21... Qxf6 {[%clk 0:00:50.7]} 22. Nd4 {[%clk
0:01:26.1]} 22... dxc5 {[%clk 0:00:50.7]} 23. Nxf5 {[%clk 0:01:24.8]} 23... Qxf5
{[%clk 0:00:51.6]} 24. d6 {[%clk 0:01:15.1]} 24... Rfd8 {[%clk 0:00:49.9]} 25.
Qd2 {[%clk 0:01:11.8]} 25... Rb6 {[%clk 0:00:49.2]} 26. Qa2+ {[%clk 0:00:57.2]}
26... Kh8 {[%clk 0:00:44.6]} 27. Qc4 {[%clk 0:00:40.1]} 27... Rbxd6 {[%clk
0:00:38.2]} 28. Rxe4 {[%clk 0:00:34.4]} 28... Rd4 {[%clk 0:00:17.8]} 29. Rxd4
{[%clk 0:00:34.5]} 29... cxd4 {[%clk 0:00:18.7]} 30. Qc7 {[%clk 0:00:26.3]}
30... Qf8 {[%clk 0:00:15.7]} 31. Rd1 {[%clk 0:00:20.6]} 31... h6 {[%clk
0:00:15.7]} 32. Kf1 {[%clk 0:00:18.5]} 32... Qd6 {[%clk 0:00:15.8]} 33. Qxd6
{[%clk 0:00:18]} 33... Rxd6 {[%clk 0:00:16.7]} 34. Ke2 {[%clk 0:00:18.4]} 34...
Kg8 {[%clk 0:00:16.9]} 35. Kd3 {[%clk 0:00:18.5]} 35... Kf7 {[%clk 0:00:17.5]}
36. Re1 {[%clk 0:00:18.5]} 36... g5 {[%clk 0:00:17.3]} 37. Re4 {[%clk
0:00:18.5]} 37... Rb6 {[%clk 0:00:11]} 38. Rxd4 {[%clk 0:00:18.6]} 38... Rb3+
{[%clk 0:00:11.1]} 39. Ke4 {[%clk 0:00:18.5]} 39... Rb2 {[%clk 0:00:11.5]} 40.
Kf3 {[%clk 0:00:18.5]} 40... Ra2 {[%clk 0:00:10.7]} 41. g3 {[%clk 0:00:16.8]}
41... fxg3 {[%clk 0:00:10.2]} 42. fxg3 {[%clk 0:00:17.7]} 42... Ra3+ {[%clk
0:00:10.6]} 43. Kg4 {[%clk 0:00:17.6]} 43... Kg7 {[%clk 0:00:10.4]} 44. Rc4
{[%clk 0:00:14.1]} 44... Kh7 {[%clk 0:00:09.2]} 45. Kh5 {[%clk 0:00:12.7]} 45...
Rxg3 {[%clk 0:00:07.9]} 46. Rc7+ {[%clk 0:00:12.6]} 46... Kg8 {[%clk 0:00:08.5]}
47. Kxh6 {[%clk 0:00:12.8]} 47... Rxh3+ {[%clk 0:00:08.6]} 48. Kxg5 {[%clk
0:00:13]} 48... Kf8 {[%clk 0:00:08.7]} 49. Ra7 {[%clk 0:00:12.7]} 49... Ra3
{[%clk 0:00:08.2]} 50. Rxa6 {[%clk 0:00:13.1]} 50... Ke7 {[%clk 0:00:08.8]} 51.
Kf5 {[%clk 0:00:13.7]} 51... Kd7 {[%clk 0:00:09.1]} 52. Ke5 {[%clk 0:00:14.2]}
52... Kc7 {[%clk 0:00:09.5]} 53. Kd5 {[%clk 0:00:14.3]} 53... Kb7 {[%clk
0:00:09.9]} 54. Ra5 {[%clk 0:00:14.3]} 54... Kb6 {[%clk 0:00:10.3]} 55. Ra8
{[%clk 0:00:14.5]} 55... Kb7 {[%clk 0:00:10.2]} 56. Ra5 {[%clk 0:00:14.1]} 56...
Kb6 {[%clk 0:00:10.4]} 57. Rb5+ {[%clk 0:00:13.8]} 57... Ka6 {[%clk 0:00:10.4]}
58. Rb4 {[%clk 0:00:12.5]} 58... Ka5 {[%clk 0:00:10]} 59. Rd4 {[%clk 0:00:12.4]}
59... Rxa4 {[%clk 0:00:09.9]} 60. Rxa4+ {[%clk 0:00:12.3]} 60... Kxa4 {[%clk
0:00:10.8]} 1/2-1/2

[Event "Late-Titled-Tuesday-Blitz-March-26-2024"]
[Site "Chess.com"]
[Date "2024.03.26"]
[Round "7"]
[White "DanielDardha2005"]
[Black "Vladimir_Zakhartsov"]
[Result "1-0"]
[WhiteElo "2879"]
[BlackElo "2977"]
[TimeControl "180+1"]
[EndTime "15:18:57 PDT"]
[Termination "DanielDardha2005 won on time"]

1. d4 {[%clk 0:03:00.9]} 1... Nf6 {[%clk 0:02:53.6]} 2. Bg5 {[%clk 0:03:00.6]}
2... d5 {[%clk 0:02:53]} 3. e3 {[%clk 0:02:59.9]} 3... Nbd7 {[%clk 0:02:45]} 4.
c4 {[%clk 0:02:54.8]} 4... e6 {[%clk 0:02:43.2]} 5. Nc3 {[%clk 0:02:55]} 5... h6
{[%clk 0:02:42.3]} 6. Bh4 {[%clk 0:02:54.7]} 6... c6 {[%clk 0:02:41]} 7. Bd3
{[%clk 0:02:49.5]} 7... Be7 {[%clk 0:02:37.9]} 8. Nge2 {[%clk 0:02:49.4]} 8...
O-O {[%clk 0:02:36.8]} 9. O-O {[%clk 0:02:49.5]} 9... dxc4 {[%clk 0:02:33.3]}
10. Bxc4 {[%clk 0:02:50.4]} 10... b5 {[%clk 0:02:33.9]} 11. Bd3 {[%clk
0:02:42.5]} 11... Bb7 {[%clk 0:02:29.8]} 12. Bxf6 {[%clk 0:02:39.3]} 12... Nxf6
{[%clk 0:02:26.5]} 13. Ne4 {[%clk 0:02:38.9]} 13... Nd7 {[%clk 0:02:12.7]} 14.
Qc2 {[%clk 0:02:32.3]} 14... Rc8 {[%clk 0:02:09.1]} 15. Nc5 {[%clk 0:02:31.9]}
15... Nxc5 {[%clk 0:02:00.4]} 16. dxc5 {[%clk 0:02:32.8]} 16... Bf6 {[%clk
0:01:57.4]} 17. Rad1 {[%clk 0:02:25.6]} 17... Qc7 {[%clk 0:01:52.1]} 18. Ng3
{[%clk 0:02:20.8]} 18... Rfd8 {[%clk 0:01:47.2]} 19. Ne4 {[%clk 0:02:17.3]}
19... Be7 {[%clk 0:01:46.9]} 20. b4 {[%clk 0:02:17.7]} 20... a5 {[%clk
0:01:45.5]} 21. a3 {[%clk 0:02:16.8]} 21... Ra8 {[%clk 0:01:44.5]} 22. Be2
{[%clk 0:02:12.6]} 22... Rd5 {[%clk 0:01:40]} 23. Bf3 {[%clk 0:02:04.5]} 23...
Rad8 {[%clk 0:01:24.8]} 24. Nc3 {[%clk 0:02:00.8]} 24... Rxd1 {[%clk 0:01:22.9]}
25. Rxd1 {[%clk 0:02:01.7]} 25... Rxd1+ {[%clk 0:01:08.1]} 26. Qxd1 {[%clk
0:02:02.6]} 26... Kf8 {[%clk 0:00:59]} 27. Ne4 {[%clk 0:01:58.2]} 27... Bc8
{[%clk 0:00:49.6]} 28. Qd2 {[%clk 0:01:36.3]} 28... axb4 {[%clk 0:00:48.8]} 29.
axb4 {[%clk 0:01:37.2]} 29... Qe5 {[%clk 0:00:44.4]} 30. g3 {[%clk 0:01:33.8]}
30... Qd5 {[%clk 0:00:39.8]} 31. Qe2 {[%clk 0:01:00.4]} 31... Qb3 {[%clk
0:00:34.6]} 32. Qe1 {[%clk 0:00:58.1]} 32... Bd7 {[%clk 0:00:32.6]} 33. Kg2
{[%clk 0:00:50.8]} 33... f5 {[%clk 0:00:31.7]} 34. Nd6 {[%clk 0:00:40.7]} 34...
Bxd6 {[%clk 0:00:27.1]} 35. Qd2 {[%clk 0:00:37.4]} 35... Bxc5 {[%clk 0:00:06.1]}
36. Qxd7 {[%clk 0:00:32.6]} 36... Qxb4 {[%clk 0:00:03.3]} 37. Bh5 {[%clk
0:00:07.5]} 37... Kg8 {[%clk 0:00:02.4]} 38. Qxe6+ {[%clk 0:00:07.7]} 38... Kh8
{[%clk 0:00:02.3]} 39. Qxf5 {[%clk 0:00:06.4]} 39... Bf8 {[%clk 0:00:02.3]} 40.
Bf3 {[%clk 0:00:05.5]} 40... Qd6 {[%clk 0:00:02.2]} 41. Be4 {[%clk 0:00:04.7]}
41... Kg8 {[%clk 0:00:02.8]} 42. Qc8 {[%clk 0:00:04.3]} 42... c5 {[%clk
0:00:02.6]} 43. Qb7 {[%clk 0:00:03]} 43... b4 {[%clk 0:00:03.1]} 44. Bd5+ {[%clk
0:00:03.5]} 44... Kh8 {[%clk 0:00:03.6]} 45. Qf7 {[%clk 0:00:03.2]} 45... Kh7
{[%clk 0:00:02.9]} 46. h4 {[%clk 0:00:02.7]} 46... Qf6 {[%clk 0:00:02.8]} 47.
Qg8+ {[%clk 0:00:03]} 47... Kg6 {[%clk 0:00:03.3]} 48. Be4+ {[%clk 0:00:03.7]}
48... Kh5 {[%clk 0:00:03.4]} 49. Qd5+ {[%clk 0:00:03.4]} 49... g5 {[%clk
0:00:03.7]} 50. Qd7 {[%clk 0:00:02.8]} 50... gxh4 {[%clk 0:00:02.6]} 51. g4+
{[%clk 0:00:03.4]} 51... Kg5 {[%clk 0:00:03.2]} 52. f4+ {[%clk 0:00:04.3]} 1-0

[Event "Late-Titled-Tuesday-Blitz-March-26-2024"]
[Site "Chess.com"]
[Date "2024.03.26"]
[Round "7"]
[White "Quattroporte300"]
[Black "manitodeplomo"]
[Result "0-1"]
[WhiteElo "2483"]
[BlackElo "2645"]
[TimeControl "180+1"]
[EndTime "15:18:57 PDT"]
[Termination "manitodeplomo won by checkmate"]

1. e4 {[%clk 0:02:58.4]} 1... c5 {[%clk 0:02:58.3]} 2. Nc3 {[%clk 0:02:57.3]}
2... Nc6 {[%clk 0:02:57.3]} 3. g3 {[%clk 0:02:56.1]} 3... g6 {[%clk 0:02:57.5]}
4. Bg2 {[%clk 0:02:56.4]} 4... Bg7 {[%clk 0:02:58.4]} 5. Nge2 {[%clk 0:02:56.9]}
5... Rb8 {[%clk 0:02:57.3]} 6. O-O {[%clk 0:02:56.4]} 6... b5 {[%clk 0:02:57.9]}
7. f4 {[%clk 0:02:53]} 7... d6 {[%clk 0:02:54.1]} 8. d3 {[%clk 0:02:52]} 8... b4
{[%clk 0:02:40.4]} 9. Nd5 {[%clk 0:02:50.5]} 9... Bg4 {[%clk 0:02:39.6]} 10. Qe1
{[%clk 0:02:44.3]} 10... e6 {[%clk 0:02:30.1]} 11. Ne3 {[%clk 0:02:42]} 11...
Bxe2 {[%clk 0:02:29.4]} 12. Qxe2 {[%clk 0:02:42]} 12... Nd4 {[%clk 0:02:23.6]}
13. Qf2 {[%clk 0:02:22]} 13... Nf6 {[%clk 0:02:21.6]} 14. e5 {[%clk 0:02:06.6]}
14... Nd7 {[%clk 0:02:12.1]} 15. exd6 {[%clk 0:02:06.1]} 15... Nb6 {[%clk
0:02:08.3]} 16. c3 {[%clk 0:01:58.1]} 16... bxc3 {[%clk 0:02:05.1]} 17. bxc3
{[%clk 0:01:58]} 17... Nf5 {[%clk 0:01:57]} 18. Nxf5 {[%clk 0:01:51.4]} 18...
gxf5 {[%clk 0:01:57.9]} 19. Bc6+ {[%clk 0:01:51.4]} 19... Kf8 {[%clk 0:01:56.3]}
20. Qxc5 {[%clk 0:01:50.2]} 20... Kg8 {[%clk 0:01:55.3]} 21. a4 {[%clk
0:01:31.7]} 21... Rc8 {[%clk 0:01:48.4]} 22. Ba3 {[%clk 0:01:17.8]} 22... Nd5
{[%clk 0:01:29.5]} 23. d4 {[%clk 0:01:10.5]} 23... Bf8 {[%clk 0:01:15]} 24. c4
{[%clk 0:00:51.9]} 24... Nc3 {[%clk 0:00:55.1]} 25. d5 {[%clk 0:00:39.6]} 25...
Bg7 {[%clk 0:00:38]} 26. d7 {[%clk 0:00:30.3]} 26... Bd4+ {[%clk 0:00:37.2]} 27.
Qxd4 {[%clk 0:00:27.6]} 27... Ne2+ {[%clk 0:00:37.6]} 28. Kf2 {[%clk 0:00:28.1]}
28... Nxd4 {[%clk 0:00:38.3]} 29. Be7 {[%clk 0:00:18.1]} 29... Qc7 {[%clk
0:00:33.8]} 30. Bd6 {[%clk 0:00:18.6]} 30... Qd8 {[%clk 0:00:18.4]} 31. Be7
{[%clk 0:00:17.4]} 31... Qc7 {[%clk 0:00:16.1]} 32. Bd6 {[%clk 0:00:17.4]} 32...
Qd8 {[%clk 0:00:15.9]} 33. dxc8=Q {[%clk 0:00:12.5]} 33... Qxc8 {[%clk
0:00:15.6]} 34. Rab1 {[%clk 0:00:13.1]} 34... Nxc6 {[%clk 0:00:12.6]} 35. dxc6
{[%clk 0:00:13.3]} 35... Qxc6 {[%clk 0:00:12.9]} 36. Rb8+ {[%clk 0:00:13.1]}
36... Kg7 {[%clk 0:00:13]} 37. Be5+ {[%clk 0:00:13.8]} 37... f6 {[%clk
0:00:13.2]} 38. Bxf6+ {[%clk 0:00:10.1]} 38... Kxf6 {[%clk 0:00:14.1]} 39. Rxh8
{[%clk 0:00:10.1]} 39... Qc5+ {[%clk 0:00:13.6]} 40. Kg2 {[%clk 0:00:09.4]}
40... Qc6+ {[%clk 0:00:13.3]} 41. Kh3 {[%clk 0:00:08.1]} 41... Qxc4 {[%clk
0:00:13.1]} 42. Rb1 {[%clk 0:00:05.9]} 42... Qxa4 {[%clk 0:00:09.9]} 43. Rbb8
{[%clk 0:00:06]} 43... Qc4 {[%clk 0:00:06.9]} 44. Rbf8+ {[%clk 0:00:05.6]} 44...
Ke7 {[%clk 0:00:07]} 45. Re8+ {[%clk 0:00:05.5]} 45... Kf7 {[%clk 0:00:05.4]}
46. Ra8 {[%clk 0:00:05]} 46... Qf1+ {[%clk 0:00:04.2]} 47. Kh4 {[%clk
0:00:05.4]} 47... Qe2 {[%clk 0:00:04.2]} 48. Rxh7+ {[%clk 0:00:04.7]} 48... Kg6
{[%clk 0:00:04.2]} 49. h3 {[%clk 0:00:01.8]} 49... Kxh7 {[%clk 0:00:03.6]} 50.
Rxa7+ {[%clk 0:00:02.5]} 50... Kg6 {[%clk 0:00:03.7]} 51. Ra8 {[%clk 0:00:01.9]}
51... Qh5# {[%clk 0:00:03.3]} 0-1

[Event "Late-Titled-Tuesday-Blitz-March-26-2024"]
[Site "Chess.com"]
[Date "2024.03.26"]
[Round "7"]
[White "Byniolus"]
[Black "Nf3c5"]
[Result "1-0"]
[WhiteElo "2736"]
[BlackElo "2562"]
[TimeControl "180+1"]
[EndTime "15:18:58 PDT"]
[Termination "Byniolus won by checkmate"]

1. d4 {[%clk 0:03:00.9]} 1... Nf6 {[%clk 0:02:58.5]} 2. Nf3 {[%clk 0:03:01.2]}
2... g6 {[%clk 0:02:58.6]} 3. Bf4 {[%clk 0:03:01.5]} 3... Bg7 {[%clk 0:02:54.4]}
4. e3 {[%clk 0:03:02]} 4... d6 {[%clk 0:02:52.6]} 5. h3 {[%clk 0:03:01.8]} 5...
O-O {[%clk 0:02:50.2]} 6. Be2 {[%clk 0:03:02.3]} 6... Nfd7 {[%clk 0:02:50.6]} 7.
O-O {[%clk 0:03:02.2]} 7... e5 {[%clk 0:02:51.2]} 8. Bh2 {[%clk 0:03:03.1]} 8...
Nc6 {[%clk 0:02:48.7]} 9. c4 {[%clk 0:03:02.5]} 9... f5 {[%clk 0:02:49]} 10. Nc3
{[%clk 0:03:02.6]} 10... e4 {[%clk 0:02:48.9]} 11. Nd2 {[%clk 0:03:02.5]} 11...
g5 {[%clk 0:02:48.1]} 12. Rc1 {[%clk 0:02:54.7]} 12... Nf6 {[%clk 0:02:18.3]}
13. a3 {[%clk 0:02:48.1]} 13... Ne7 {[%clk 0:02:15.6]} 14. d5 {[%clk 0:02:42.9]}
14... Ng6 {[%clk 0:02:07.3]} 15. Nb3 {[%clk 0:02:43]} 15... Qe7 {[%clk 0:02:03]}
16. c5 {[%clk 0:02:41.3]} 16... a6 {[%clk 0:01:50]} 17. cxd6 {[%clk 0:02:40.5]}
17... cxd6 {[%clk 0:01:50.9]} 18. Nd4 {[%clk 0:02:36.7]} 18... f4 {[%clk
0:01:50.7]} 19. Re1 {[%clk 0:02:19.4]} 19... f3 {[%clk 0:01:40.6]} 20. gxf3
{[%clk 0:02:17.3]} 20... Bxh3 {[%clk 0:01:39.9]} 21. Ne6 {[%clk 0:02:13.2]}
21... exf3 {[%clk 0:01:09.1]} 22. Bxf3 {[%clk 0:02:12.1]} 22... Nh4 {[%clk
0:01:07.7]} 23. Bh1 {[%clk 0:01:48.5]} 23... Ng4 {[%clk 0:01:01.5]} 24. Bg3
{[%clk 0:01:42.5]} 24... Ne5 {[%clk 0:00:59.7]} 25. f4 {[%clk 0:01:29]} 25...
Bg4 {[%clk 0:00:52.3]} 26. Bxh4 {[%clk 0:00:50.1]} 26... Bxd1 {[%clk 0:00:49]}
27. Bxg5 {[%clk 0:00:50.5]} 27... Bf6 {[%clk 0:00:47.7]} 28. Rcxd1 {[%clk
0:00:41.4]} 28... Bxg5 {[%clk 0:00:45.6]} 29. Nxg5 {[%clk 0:00:42.3]} 29... Nf7
{[%clk 0:00:36.9]} 30. Ne6 {[%clk 0:00:39.6]} 30... Kh8 {[%clk 0:00:36.6]} 31.
Nxf8 {[%clk 0:00:29.6]} 31... Rxf8 {[%clk 0:00:37.1]} 32. Kf2 {[%clk 0:00:30.5]}
32... Qh4+ {[%clk 0:00:36.6]} 33. Ke2 {[%clk 0:00:30.6]} 33... Qh2+ {[%clk
0:00:33.9]} 34. Kd3 {[%clk 0:00:26.2]} 34... Nh6 {[%clk 0:00:33.7]} 35. Re2
{[%clk 0:00:20.4]} 35... Qh5 {[%clk 0:00:32.7]} 36. Be4 {[%clk 0:00:18.7]} 36...
Ng4 {[%clk 0:00:29.6]} 37. Rh1 {[%clk 0:00:16.7]} 37... Qe8 {[%clk 0:00:13.7]}
38. Rxh7+ {[%clk 0:00:16.8]} 38... Kg8 {[%clk 0:00:14.1]} 39. Rg2 {[%clk
0:00:17]} 39... Rf6 {[%clk 0:00:12.6]} 40. Rxg4+ {[%clk 0:00:16]} 40... Kf8
{[%clk 0:00:09.7]} 41. Rh8+ {[%clk 0:00:15.8]} 41... Ke7 {[%clk 0:00:10.4]} 42.
Rxe8+ {[%clk 0:00:16.2]} 42... Kxe8 {[%clk 0:00:11.3]} 43. Rg6 {[%clk
0:00:16.4]} 43... Rf7 {[%clk 0:00:11.3]} 44. Rxd6 {[%clk 0:00:15.9]} 44... Ke7
{[%clk 0:00:11.1]} 45. Re6+ {[%clk 0:00:15.8]} 45... Kd7 {[%clk 0:00:11.6]} 46.
Kd4 {[%clk 0:00:15.1]} 46... b5 {[%clk 0:00:10.4]} 47. Ke5 {[%clk 0:00:15]}
47... Rg7 {[%clk 0:00:09.7]} 48. Bf5 {[%clk 0:00:15]} 48... Kc7 {[%clk
0:00:08.1]} 49. Ne4 {[%clk 0:00:14]} 49... Rg1 {[%clk 0:00:07.4]} 50. d6+ {[%clk
0:00:13.6]} 50... Kc6 {[%clk 0:00:05.1]} 51. d7+ {[%clk 0:00:14.2]} 51... Kc7
{[%clk 0:00:05.7]} 52. Rc6+ {[%clk 0:00:10]} 52... Kb7 {[%clk 0:00:04.5]} 53.
d8=Q {[%clk 0:00:07.4]} 53... Rg8 {[%clk 0:00:04.8]} 54. Qb6+ {[%clk 0:00:05]}
54... Ka8 {[%clk 0:00:05]} 55. Qxa6+ {[%clk 0:00:05.7]} 55... Kb8 {[%clk
0:00:05.6]} 56. Qxb5+ {[%clk 0:00:05.3]} 56... Ka7 {[%clk 0:00:05.2]} 57. Ra6#
{[%clk 0:00:06.2]} 1-0